[Event "Live Chess"]
[Site "Chess.com"]
[Date "2023.05.21"]
[Round "-"]
[White "Tushinskiy"]
[Black "SupremeTactician"]
[Result "1-0"]
[WhiteElo "2155"]
[BlackElo "2269"]
[TimeControl "300"]
[EndTime "2:28:12 PDT"]
[Termination "Tushinskiy won by resignation"]

1. d4 {[%clk 0:04:58.6]} 1... Nf6 {[%clk 0:04:58.9]} 2. c3 {[%clk 0:04:58.5]}
2... e6 {[%clk 0:04:58.4]} 3. Nf3 {[%clk 0:04:58.4]} 3... d5 {[%clk 0:04:57.8]}
4. Bf4 {[%clk 0:04:58.3]} 4... b6 {[%clk 0:04:57.2]} 5. Bg3 {[%clk 0:04:58.2]}
5... Bd6 {[%clk 0:04:56.4]} 6. Nbd2 {[%clk 0:04:57.7]} 6... Bb7 {[%clk
0:04:55.2]} 7. e3 {[%clk 0:04:56.2]} 7... a5 {[%clk 0:04:54.7]} 8. Bd3 {[%clk
0:04:54.4]} 8... O-O {[%clk 0:04:53.4]} 9. Qe2 {[%clk 0:04:53.5]} 9... Ne4
{[%clk 0:04:49.6]} 10. O-O {[%clk 0:04:50.6]} 10... Bxg3 {[%clk 0:04:47.6]} 11.
hxg3 {[%clk 0:04:50.5]} 11... f5 {[%clk 0:04:47.3]} 12. Rae1 {[%clk 0:04:48.9]}
12... g5 {[%clk 0:04:46.1]} 13. Rd1 {[%clk 0:04:47.3]} 13... g4 {[%clk
0:04:45.1]} 14. Ne5 {[%clk 0:04:46.5]} 14... Nd7 {[%clk 0:04:44]} 15. Nxd7
{[%clk 0:04:42.6]} 15... Qxd7 {[%clk 0:04:43.2]} 16. Rfe1 {[%clk 0:04:39.7]}
16... Qf7 {[%clk 0:04:40.4]} 17. c4 {[%clk 0:04:36.5]} 17... Qh5 {[%clk
0:04:38.9]} 18. cxd5 {[%clk 0:04:31]} 18... Rf6 {[%clk 0:04:33.4]} 19. Nxe4
{[%clk 0:04:16.3]} 19... fxe4 {[%clk 0:04:31.6]} 20. Bxe4 {[%clk 0:04:14.1]}
20... exd5 {[%clk 0:04:27.8]} 21. Bb1 {[%clk 0:03:59.5]} 21... Rh6 {[%clk
0:04:26.3]} 22. f3 {[%clk 0:03:58.8]} 22... Qh2+ {[%clk 0:04:21.7]} 23. Kf2
{[%clk 0:03:54.2]} 23... gxf3 {[%clk 0:04:20.9]} 24. Qxf3 {[%clk 0:03:53.4]}
24... Rf8 {[%clk 0:04:19.6]} 25. Bf5 {[%clk 0:03:50.7]} 25... Rhf6 {[%clk
0:04:11.5]} 26. g4 {[%clk 0:03:49.9]} 26... Qh4+ {[%clk 0:04:08]} 27. Ke2 {[%clk
0:03:48.5]} 27... Ba6+ {[%clk 0:03:57]} 28. Kd2 {[%clk 0:03:47.2]} 28... Bc8
{[%clk 0:03:56.1]} 29. Rh1 {[%clk 0:03:42]} 29... Qg5 {[%clk 0:03:55.3]} 30.
Qxd5+ {[%clk 0:03:38.8]} 30... R8f7 {[%clk 0:03:50.5]} 31. Bxh7+ {[%clk
0:03:35.4]} 1-0

[Event "Live Chess"]
[Site "Chess.com"]
[Date "2023.05.21"]
[Round "-"]
[White "ProfPoisson"]
[Black "Reggie016"]
[Result "0-1"]
[WhiteElo "1217"]
[BlackElo "1113"]
[TimeControl "300"]
[EndTime "2:28:19 PDT"]
[Termination "Reggie016 won by resignation"]

1. e4 {[%clk 0:04:55.5]} 1... e6 {[%clk 0:04:59.5]} 2. d4 {[%clk 0:04:52.9]}
2... d5 {[%clk 0:04:59.1]} 3. e5 {[%clk 0:04:51.9]} 3... c5 {[%clk 0:04:58.1]}
4. c3 {[%clk 0:04:50.8]} 4... Nc6 {[%clk 0:04:57.4]} 5. Nf3 {[%clk 0:04:49.4]}
5... Bd7 {[%clk 0:04:57]} 6. Bd3 {[%clk 0:04:44]} 6... cxd4 {[%clk 0:04:52.7]}
7. cxd4 {[%clk 0:04:42.1]} 7... Bb4+ {[%clk 0:04:52.4]} 8. Nc3 {[%clk
0:04:38.2]} 8... Nge7 {[%clk 0:04:50.8]} 9. O-O {[%clk 0:04:36.4]} 9... O-O
{[%clk 0:04:50.4]} 10. Ng5 {[%clk 0:04:27.7]} 10... h6 {[%clk 0:04:44.5]} 11.
Qh5 {[%clk 0:04:07.4]} 11... Nf5 {[%clk 0:04:39.5]} 12. Nf3 {[%clk 0:03:48.6]}
12... Ncxd4 {[%clk 0:04:18.4]} 13. Nxd4 {[%clk 0:03:43.4]} 13... Nxd4 {[%clk
0:04:17.6]} 14. a3 {[%clk 0:03:24.9]} 14... Bxc3 {[%clk 0:04:11.8]} 15. bxc3
{[%clk 0:03:22.3]} 15... Bb5 {[%clk 0:04:07.1]} 16. Bxb5 {[%clk 0:03:16.9]}
16... Nxb5 {[%clk 0:04:07]} 17. Rb1 {[%clk 0:03:15.2]} 17... Nxc3 {[%clk
0:04:02.5]} 18. Rxb7 {[%clk 0:03:11.8]} 18... Qc8 {[%clk 0:03:43.5]} 19. Rb3
{[%clk 0:03:04.5]} 19... Qc4 {[%clk 0:03:32.6]} 20. Rb4 {[%clk 0:02:44]} 20...
Qd3 {[%clk 0:03:17.8]} 21. Rg4 {[%clk 0:02:30.9]} 21... Qh7 {[%clk 0:02:59.1]}
22. Bxh6 {[%clk 0:02:25.9]} 22... g6 {[%clk 0:02:39.9]} 23. Qh3 {[%clk
0:01:54.6]} 23... Rfc8 {[%clk 0:02:33.1]} 24. Rc1 {[%clk 0:01:31.6]} 24... Ne2+
{[%clk 0:02:28]} 25. Kh1 {[%clk 0:01:22]} 25... Rxc1+ {[%clk 0:02:25.1]} 26.
Bxc1 {[%clk 0:01:09.9]} 26... Qxh3 {[%clk 0:02:21]} 27. gxh3 {[%clk 0:01:06.9]}
27... Nxc1 {[%clk 0:02:20.2]} 28. h4 {[%clk 0:01:03.3]} 28... Rc8 {[%clk
0:02:17.5]} 29. h5 {[%clk 0:01:01.8]} 29... Kg7 {[%clk 0:02:14.7]} 30. f4 {[%clk
0:00:58.1]} 30... Rc4 {[%clk 0:02:06.5]} 31. h4 {[%clk 0:00:52.8]} 31... Ne2
{[%clk 0:02:04]} 32. hxg6 {[%clk 0:00:49.1]} 32... fxg6 {[%clk 0:02:02.6]} 33.
h5 {[%clk 0:00:45.8]} 33... Nxf4 {[%clk 0:01:58.3]} 34. hxg6 {[%clk 0:00:37.3]}
34... Nxg6 {[%clk 0:01:56.8]} 35. Rxc4 {[%clk 0:00:34.7]} 35... dxc4 {[%clk
0:01:56.1]} 0-1

[Event "Live Chess"]
[Site "Chess.com"]
[Date "2023.05.21"]
[Round "-"]
[White "KeithArkell"]
[Black "Davidagye"]
[Result "1-0"]
[WhiteElo "2511"]
[BlackElo "1669"]
[TimeControl "300"]
[EndTime "2:28:20 PDT"]
[Termination "KeithArkell won by checkmate"]

1. d4 {[%clk 0:04:57.6]} 1... Nf6 {[%clk 0:04:52.7]} 2. Nf3 {[%clk 0:04:56.6]}
2... g6 {[%clk 0:04:48.6]} 3. c4 {[%clk 0:04:55.6]} 3... Bg7 {[%clk 0:04:47.2]}
4. Nc3 {[%clk 0:04:53.5]} 4... O-O {[%clk 0:04:44]} 5. g3 {[%clk 0:04:52.7]}
5... d6 {[%clk 0:04:38.8]} 6. Bg2 {[%clk 0:04:52]} 6... c6 {[%clk 0:04:37.8]} 7.
O-O {[%clk 0:04:51.1]} 7... Nbd7 {[%clk 0:04:35.2]} 8. Bf4 {[%clk 0:04:48.2]}
8... Qc7 {[%clk 0:04:31.3]} 9. c5 {[%clk 0:04:46.9]} 9... b5 {[%clk 0:04:19.1]}
10. Rc1 {[%clk 0:04:44.1]} 10... Qb8 {[%clk 0:03:59.4]} 11. cxd6 {[%clk
0:04:43.1]} 11... exd6 {[%clk 0:03:57.7]} 12. Ng5 {[%clk 0:04:41.3]} 12... Bb7
{[%clk 0:03:53.2]} 13. Nge4 {[%clk 0:04:39.3]} 13... Ne8 {[%clk 0:03:49.5]} 14.
Nc5 {[%clk 0:04:34.1]} 14... Nxc5 {[%clk 0:03:37.5]} 15. dxc5 {[%clk 0:04:32.6]}
15... Be5 {[%clk 0:03:36.6]} 16. cxd6 {[%clk 0:04:23.7]} 16... Bxf4 {[%clk
0:03:27.7]} 17. gxf4 {[%clk 0:04:22]} 17... Nxd6 {[%clk 0:03:27]} 18. e3 {[%clk
0:04:09.8]} 18... Re8 {[%clk 0:03:21.2]} 19. Qd4 {[%clk 0:04:05.7]} 19... Nc4
{[%clk 0:03:09.1]} 20. b3 {[%clk 0:03:58.8]} 20... Nb6 {[%clk 0:03:07]} 21. Ne4
{[%clk 0:03:55.4]} 21... Qd8 {[%clk 0:02:59.8]} 22. Nf6+ {[%clk 0:03:53.2]}
22... Kf8 {[%clk 0:02:54.7]} 23. Nxe8 {[%clk 0:03:50.5]} 23... Qxd4 {[%clk
0:02:52.9]} 24. exd4 {[%clk 0:03:49.2]} 24... Rxe8 {[%clk 0:02:51.5]} 25. d5
{[%clk 0:03:44.4]} 25... c5 {[%clk 0:02:46.5]} 26. Rxc5 {[%clk 0:03:42.4]} 26...
Re2 {[%clk 0:02:44.8]} 27. Rxb5 {[%clk 0:03:38.7]} 27... Rxa2 {[%clk 0:02:42.4]}
28. Rd1 {[%clk 0:03:35]} 28... Bc8 {[%clk 0:02:33.5]} 29. Rc5 {[%clk 0:03:33]}
29... Bd7 {[%clk 0:02:30.4]} 30. d6 {[%clk 0:03:31.2]} 30... Ra3 {[%clk
0:02:27]} 31. Rc7 {[%clk 0:03:28.2]} 31... Rxb3 {[%clk 0:02:23.1]} 32. Rxa7
{[%clk 0:03:27.2]} 32... Ke8 {[%clk 0:02:18.7]} 33. h3 {[%clk 0:03:23.4]} 33...
h5 {[%clk 0:02:15.8]} 34. Re1+ {[%clk 0:03:21.6]} 34... Kd8 {[%clk 0:02:09.4]}
35. Re7 {[%clk 0:03:18]} 35... Be6 {[%clk 0:02:03.1]} 36. Bc6 {[%clk 0:03:08.7]}
36... Rb1+ {[%clk 0:01:40.2]} 37. Kh2 {[%clk 0:03:06.5]} 37... Bd5 {[%clk
0:01:36.7]} 38. Re8# {[%clk 0:03:05]} 1-0

[Event "Live Chess"]
[Site "Chess.com"]
[Date "2023.05.21"]
[Round "-"]
[White "jusjoel"]
[Black "Singapourfeuj"]
[Result "0-1"]
[WhiteElo "265"]
[BlackElo "2192"]
[TimeControl "300"]
[EndTime "2:28:23 PDT"]
[Termination "Singapourfeuj won by checkmate"]

1. d4 {[%clk 0:04:56.8]} 1... Nf6 {[%clk 0:04:58.6]} 2. e4 {[%clk 0:04:53.4]}
2... Nxe4 {[%clk 0:04:56.3]} 3. Qd2 {[%clk 0:04:51.1]} 3... Nxd2 {[%clk
0:04:55.1]} 4. Kxd2 {[%clk 0:04:48]} 4... d5 {[%clk 0:04:54.1]} 5. Ke3 {[%clk
0:04:46.7]} 5... c5 {[%clk 0:04:53.2]} 6. Bc4 {[%clk 0:04:42]} 6... dxc4 {[%clk
0:04:51.9]} 7. b3 {[%clk 0:04:37.5]} 7... Qxd4+ {[%clk 0:04:50.1]} 8. Kf3 {[%clk
0:04:32.7]} 8... Bg4+ {[%clk 0:04:46.8]} 9. Kg3 {[%clk 0:04:30.2]} 9... h5
{[%clk 0:04:45.5]} 10. Kh4 {[%clk 0:04:28]} 10... f6 {[%clk 0:04:43.4]} 11. Nf3
{[%clk 0:04:23.3]} 11... Bxf3+ {[%clk 0:04:42.1]} 12. Bf4 {[%clk 0:04:18.9]}
12... Qxf4+ {[%clk 0:04:40.8]} 13. Kh3 {[%clk 0:04:12.5]} 13... Qg4# {[%clk
0:04:39]} 0-1

[Event "Live Chess"]
[Site "Chess.com"]
[Date "2023.05.21"]
[Round "-"]
[White "TheSmoulderingMaster"]
[Black "YrrriKharkiv"]
[Result "0-1"]
[WhiteElo "1710"]
[BlackElo "2072"]
[TimeControl "300"]
[EndTime "2:28:28 PDT"]
[Termination "YrrriKharkiv won by checkmate"]

1. e4 {[%clk 0:04:58.6]} 1... e6 {[%clk 0:04:59]} 2. d4 {[%clk 0:04:57.3]} 2...
d5 {[%clk 0:04:58.7]} 3. Nc3 {[%clk 0:04:56.5]} 3... Nf6 {[%clk 0:04:57.5]} 4.
Bg5 {[%clk 0:04:54.7]} 4... Be7 {[%clk 0:04:56.3]} 5. e5 {[%clk 0:04:54]} 5...
Nfd7 {[%clk 0:04:55.3]} 6. Bxe7 {[%clk 0:04:53.4]} 6... Qxe7 {[%clk 0:04:54.1]}
7. Nb5 {[%clk 0:04:52.2]} 7... Nb6 {[%clk 0:04:50.9]} 8. Nf3 {[%clk 0:04:47.3]}
8... a6 {[%clk 0:04:50.3]} 9. Nc3 {[%clk 0:04:45.4]} 9... c5 {[%clk 0:04:49.4]}
10. dxc5 {[%clk 0:04:43.9]} 10... Qxc5 {[%clk 0:04:48.1]} 11. Qd2 {[%clk
0:04:41.9]} 11... Qe7 {[%clk 0:04:40.6]} 12. O-O-O {[%clk 0:04:39.2]} 12... Nc6
{[%clk 0:04:38.7]} 13. h4 {[%clk 0:04:35.2]} 13... Nd7 {[%clk 0:04:32.8]} 14.
Re1 {[%clk 0:04:32.2]} 14... b5 {[%clk 0:04:28.4]} 15. Bd3 {[%clk 0:04:29.1]}
15... Nc5 {[%clk 0:04:17.1]} 16. Nd1 {[%clk 0:04:27.3]} 16... Nxd3+ {[%clk
0:04:12.7]} 17. Qxd3 {[%clk 0:04:25.8]} 17... Na5 {[%clk 0:04:06.4]} 18. Ne3
{[%clk 0:04:17]} 18... Nc4 {[%clk 0:04:01.8]} 19. Ng4 {[%clk 0:04:09.6]} 19...
Qb4 {[%clk 0:03:51.4]} 20. Qb3 {[%clk 0:04:03]} 20... Qc5 {[%clk 0:03:42.5]} 21.
Rd1 {[%clk 0:03:53.2]} 21... Bd7 {[%clk 0:03:29.3]} 22. Nd4 {[%clk 0:03:51.1]}
22... h5 {[%clk 0:03:23.4]} 23. Ne3 {[%clk 0:03:48.8]} 23... Nxe5 {[%clk
0:03:22.2]} 24. Rhe1 {[%clk 0:03:44.9]} 24... Nc4 {[%clk 0:03:08]} 25. Nef5
{[%clk 0:03:33.5]} 25... O-O {[%clk 0:02:58.3]} 26. Ng3 {[%clk 0:03:27.6]} 26...
g6 {[%clk 0:02:54.2]} 27. Nf3 {[%clk 0:03:18.5]} 27... Rac8 {[%clk 0:02:45.4]}
28. Ng5 {[%clk 0:03:11]} 28... Qxf2 {[%clk 0:02:34.1]} 29. Qd3 {[%clk
0:02:56.9]} 29... Qf6 {[%clk 0:02:20.3]} 30. Nxh5 {[%clk 0:02:52.6]} 30... Qxb2#
{[%clk 0:02:18.4]} 0-1

[Event "Live Chess"]
[Site "Chess.com"]
[Date "2023.05.21"]
[Round "-"]
[White "CheckThis4"]
[Black "Long1968"]
[Result "1-0"]
[WhiteElo "2494"]
[BlackElo "970"]
[TimeControl "300"]
[EndTime "2:28:28 PDT"]
[Termination "CheckThis4 won by resignation"]

1. d4 {[%clk 0:04:57.8]} 1... e6 {[%clk 0:04:53.9]} 2. e4 {[%clk 0:04:54.1]}
2... d5 {[%clk 0:04:51.4]} 3. e5 {[%clk 0:04:52.8]} 3... c5 {[%clk 0:04:48.8]}
4. c3 {[%clk 0:04:51.7]} 4... cxd4 {[%clk 0:04:45.7]} 5. cxd4 {[%clk 0:04:50.1]}
5... Nc6 {[%clk 0:04:43.6]} 6. Nf3 {[%clk 0:04:46.9]} 6... Qb6 {[%clk 0:04:41]}
7. Nc3 {[%clk 0:04:42.7]} 7... Bb4 {[%clk 0:04:37.7]} 8. Bd3 {[%clk 0:04:37.1]}
8... Nge7 {[%clk 0:04:29.1]} 9. O-O {[%clk 0:04:34.9]} 9... Nf5 {[%clk
0:04:26.1]} 10. Bxf5 {[%clk 0:04:30.9]} 10... Bxc3 {[%clk 0:04:19.1]} 11. Bxe6
{[%clk 0:04:11.6]} 11... Bxb2 {[%clk 0:04:12.1]} 12. Bxf7+ {[%clk 0:03:55.8]}
12... Kxf7 {[%clk 0:04:06.1]} 13. Rb1 {[%clk 0:03:54.5]} 13... Nxd4 {[%clk
0:03:30.3]} 14. Rxb2 {[%clk 0:03:47.9]} 14... Nxf3+ {[%clk 0:03:23.1]} 15. Qxf3+
{[%clk 0:03:45.9]} 15... Ke6 {[%clk 0:03:13.1]} 16. Rxb6+ {[%clk 0:03:41.8]}
16... axb6 {[%clk 0:03:10.6]} 17. Qg4+ {[%clk 0:03:39.6]} 17... Kxe5 {[%clk
0:03:05.9]} 18. Qxg7+ {[%clk 0:03:37.3]} 1-0

[Event "Live Chess"]
[Site "Chess.com"]
[Date "2023.05.21"]
[Round "-"]
[White "RockTroll"]
[Black "RamsayFlayer"]
[Result "1-0"]
[WhiteElo "2213"]
[BlackElo "1962"]
[TimeControl "300"]
[EndTime "2:29:21 PDT"]
[Termination "RockTroll won by checkmate"]

1. e4 {[%clk 0:04:57.1]} 1... e5 {[%clk 0:04:59.2]} 2. Nf3 {[%clk 0:04:56.3]}
2... Nc6 {[%clk 0:04:58.1]} 3. Bc4 {[%clk 0:04:54.8]} 3... Nf6 {[%clk
0:04:57.2]} 4. d3 {[%clk 0:04:53.4]} 4... Bc5 {[%clk 0:04:56]} 5. O-O {[%clk
0:04:51.1]} 5... d6 {[%clk 0:04:53.4]} 6. c3 {[%clk 0:04:50.1]} 6... a5 {[%clk
0:04:45.2]} 7. a4 {[%clk 0:04:48.2]} 7... h6 {[%clk 0:04:35.5]} 8. Na3 {[%clk
0:04:47]} 8... Bg4 {[%clk 0:04:27.3]} 9. Nc2 {[%clk 0:04:45.1]} 9... O-O {[%clk
0:04:24.4]} 10. Be3 {[%clk 0:04:44]} 10... Bxe3 {[%clk 0:04:17.3]} 11. Nxe3
{[%clk 0:04:43.9]} 11... Bh5 {[%clk 0:04:14.9]} 12. h3 {[%clk 0:04:29.1]} 12...
Ne7 {[%clk 0:04:11.4]} 13. g4 {[%clk 0:04:25.6]} 13... Bg6 {[%clk 0:04:06.9]}
14. Nh4 {[%clk 0:04:24.2]} 14... c6 {[%clk 0:03:55.2]} 15. f4 {[%clk 0:04:17]}
15... exf4 {[%clk 0:03:50]} 16. Rxf4 {[%clk 0:04:16.9]} 16... d5 {[%clk
0:03:43.4]} 17. exd5 {[%clk 0:04:15.6]} 17... cxd5 {[%clk 0:03:42]} 18. Bb3
{[%clk 0:04:08.9]} 18... Qb6 {[%clk 0:03:32]} 19. d4 {[%clk 0:03:55.1]} 19...
Be4 {[%clk 0:03:21.6]} 20. Nhf5 {[%clk 0:03:41.3]} 20... Nxf5 {[%clk 0:03:16.1]}
21. Nxf5 {[%clk 0:03:40.4]} 21... Bxf5 {[%clk 0:02:50.6]} 22. Rxf5 {[%clk
0:03:40.3]} 22... Qe6 {[%clk 0:02:49.3]} 23. Re5 {[%clk 0:03:34.9]} 23... Qd6
{[%clk 0:02:44.1]} 24. Qf3 {[%clk 0:03:31.1]} 24... Rad8 {[%clk 0:02:38.6]} 25.
Rae1 {[%clk 0:03:27.5]} 25... Qb6 {[%clk 0:02:18.8]} 26. Bc2 {[%clk 0:03:25.9]}
26... Qxb2 {[%clk 0:02:15.2]} 27. Qf5 {[%clk 0:03:24.4]} 27... Qxc3 {[%clk
0:02:09.1]} 28. R1e3 {[%clk 0:03:07.8]} 28... Qxd4 {[%clk 0:02:06]} 29. Kh2
{[%clk 0:03:01.6]} 29... Rde8 {[%clk 0:01:53.1]} 30. Rxe8 {[%clk 0:02:44]} 30...
Rxe8 {[%clk 0:01:53]} 31. Rxe8+ {[%clk 0:02:43.1]} 31... Nxe8 {[%clk 0:01:52.8]}
32. Bd3 {[%clk 0:02:28.5]} 32... Nf6 {[%clk 0:01:27]} 33. Qc8+ {[%clk
0:02:25.8]} 33... Ne8 {[%clk 0:01:21.5]} 34. Qxe8# {[%clk 0:02:25.4]} 1-0

[Event "Live Chess"]
[Site "Chess.com"]
[Date "2023.05.21"]
[Round "-"]
[White "GwaryTek"]
[Black "HadesLearmonth"]
[Result "1-0"]
[WhiteElo "2068"]
[BlackElo "1191"]
[TimeControl "300"]
[EndTime "2:29:25 PDT"]
[Termination "GwaryTek won by checkmate"]

1. d4 {[%clk 0:04:56.1]} 1... d5 {[%clk 0:04:58.6]} 2. Bg5 {[%clk 0:04:53.6]}
2... Bf5 {[%clk 0:04:55.8]} 3. e3 {[%clk 0:04:51.7]} 3... Nf6 {[%clk 0:04:53.4]}
4. Bd3 {[%clk 0:04:50.2]} 4... e6 {[%clk 0:04:50.4]} 5. Bxf5 {[%clk 0:04:47.5]}
5... exf5 {[%clk 0:04:49.1]} 6. Qd3 {[%clk 0:04:46.7]} 6... Be7 {[%clk
0:04:32.7]} 7. Qxf5 {[%clk 0:04:44.6]} 7... O-O {[%clk 0:04:30.4]} 8. Nc3 {[%clk
0:04:42.6]} 8... Nc6 {[%clk 0:04:27.9]} 9. O-O-O {[%clk 0:04:40.6]} 9... Ne4
{[%clk 0:04:16.7]} 10. Nxe4 {[%clk 0:04:11.3]} 10... dxe4 {[%clk 0:04:12.4]} 11.
h4 {[%clk 0:04:05.8]} 11... Nb4 {[%clk 0:04:06.4]} 12. Qxe4 {[%clk 0:03:53.2]}
12... Bxg5 {[%clk 0:04:01.1]} 13. hxg5 {[%clk 0:03:51.6]} 13... g6 {[%clk
0:03:54.8]} 14. Qh4 {[%clk 0:03:50.2]} 14... f6 {[%clk 0:03:43.3]} 15. Qxh7#
{[%clk 0:03:48]} 1-0

[Event "Live Chess"]
[Site "Chess.com"]
[Date "2023.05.21"]
[Round "-"]
[White "Denz14"]
[Black "Berdgross"]
[Result "1-0"]
[WhiteElo "1048"]
[BlackElo "656"]
[TimeControl "300"]
[EndTime "2:29:31 PDT"]
[Termination "Denz14 won by resignation"]

1. e4 {[%clk 0:04:58.1]} 1... e5 {[%clk 0:04:58.2]} 2. Nf3 {[%clk 0:04:56.5]}
2... d6 {[%clk 0:04:57.2]} 3. Bc4 {[%clk 0:04:54.9]} 3... Be6 {[%clk 0:04:55]}
4. Qe2 {[%clk 0:04:51.8]} 4... Nc6 {[%clk 0:04:52.6]} 5. Bxe6 {[%clk 0:04:49.4]}
5... fxe6 {[%clk 0:04:50.5]} 6. Qb5 {[%clk 0:04:46.9]} 6... Rb8 {[%clk
0:04:45.6]} 7. O-O {[%clk 0:04:44.4]} 7... a6 {[%clk 0:04:44.7]} 8. Qe2 {[%clk
0:04:41.9]} 8... Nf6 {[%clk 0:04:41.3]} 9. d3 {[%clk 0:04:40.7]} 9... d5 {[%clk
0:04:39.3]} 10. Bg5 {[%clk 0:04:38.9]} 10... Be7 {[%clk 0:04:37.2]} 11. Bxf6
{[%clk 0:04:36.9]} 11... Bxf6 {[%clk 0:04:35.7]} 12. Nc3 {[%clk 0:04:30.9]}
12... d4 {[%clk 0:04:33.8]} 13. Nb1 {[%clk 0:04:24.9]} 13... h6 {[%clk
0:04:29.2]} 14. Nbd2 {[%clk 0:04:22.5]} 14... Nb4 {[%clk 0:04:17]} 15. Rfc1
{[%clk 0:04:17]} 15... Bg5 {[%clk 0:04:09.8]} 16. Nxg5 {[%clk 0:04:09.7]} 16...
Qxg5 {[%clk 0:04:06.5]} 17. a3 {[%clk 0:03:59.9]} 17... Nc6 {[%clk 0:04:02.2]}
18. Nf3 {[%clk 0:03:58.5]} 18... Qd8 {[%clk 0:03:59.7]} 19. c3 {[%clk
0:03:56.8]} 19... dxc3 {[%clk 0:03:58]} 20. bxc3 {[%clk 0:03:55.5]} 20... g5
{[%clk 0:03:51.8]} 21. Nd2 {[%clk 0:03:51.3]} 21... b5 {[%clk 0:03:45.2]} 22.
Qh5+ {[%clk 0:03:47.3]} 22... Ke7 {[%clk 0:03:38.3]} 23. Rf1 {[%clk 0:03:35.1]}
23... Rf8 {[%clk 0:03:33.7]} 24. Qxh6 {[%clk 0:03:33.3]} 24... Rh8 {[%clk
0:03:30.4]} 25. Qxg5+ {[%clk 0:03:31]} 25... Ke8 {[%clk 0:03:28.8]} 26. Qg6+
{[%clk 0:03:26.3]} 26... Kd7 {[%clk 0:03:24.4]} 27. f4 {[%clk 0:03:09.4]} 27...
Rg8 {[%clk 0:03:14.7]} 28. Qh7+ {[%clk 0:03:04.2]} 28... Kc8 {[%clk 0:03:08.7]}
29. fxe5 {[%clk 0:03:03]} 29... Nxe5 {[%clk 0:03:04.7]} 30. d4 {[%clk
0:03:01.6]} 30... Nd3 {[%clk 0:02:59.9]} 31. e5 {[%clk 0:02:59.3]} 31... Qg5
{[%clk 0:02:53.6]} 32. g3 {[%clk 0:02:53]} 32... Kb7 {[%clk 0:02:49.3]} 33. Qxd3
{[%clk 0:02:49.8]} 33... Rg7 {[%clk 0:02:32.6]} 34. Nf3 {[%clk 0:02:44.8]} 34...
Qg4 {[%clk 0:02:28.6]} 35. Rae1 {[%clk 0:02:40.2]} 35... Rbg8 {[%clk 0:02:22.8]}
36. Qe4+ {[%clk 0:02:38.8]} 36... Qxe4 {[%clk 0:02:19.2]} 37. Rxe4 {[%clk
0:02:37.5]} 37... Rxg3+ {[%clk 0:02:10]} 38. hxg3 {[%clk 0:02:34.9]} 38... Rxg3+
{[%clk 0:02:09.7]} 39. Kf2 {[%clk 0:02:31.4]} 39... Rh3 {[%clk 0:02:07.6]} 40.
Rg1 {[%clk 0:02:28.9]} 1-0

[Event "Live Chess"]
[Site "Chess.com"]
[Date "2023.05.21"]
[Round "-"]
[White "EdenHazard8"]
[Black "Biranidun"]
[Result "0-1"]
[WhiteElo "1977"]
[BlackElo "2552"]
[TimeControl "300"]
[EndTime "2:29:31 PDT"]
[Termination "Biranidun won by resignation"]

1. e4 {[%clk 0:04:58.9]} 1... c5 {[%clk 0:04:58.5]} 2. Nf3 {[%clk 0:04:57.1]}
2... d6 {[%clk 0:04:57.8]} 3. c4 {[%clk 0:04:53.6]} 3... Nf6 {[%clk 0:04:56.9]}
4. Nc3 {[%clk 0:04:52.2]} 4... Bg4 {[%clk 0:04:54.8]} 5. Be2 {[%clk 0:04:50.1]}
5... Nc6 {[%clk 0:04:54]} 6. O-O {[%clk 0:04:43.5]} 6... g6 {[%clk 0:04:53.1]}
7. d3 {[%clk 0:04:42]} 7... Bg7 {[%clk 0:04:52]} 8. h3 {[%clk 0:04:40]} 8...
Bxf3 {[%clk 0:04:51.1]} 9. Bxf3 {[%clk 0:04:39.9]} 9... O-O {[%clk 0:04:50.2]}
10. Nd5 {[%clk 0:04:37.8]} 10... Nd7 {[%clk 0:04:48.2]} 11. Rb1 {[%clk
0:04:31.4]} 11... e6 {[%clk 0:04:46.7]} 12. Nc3 {[%clk 0:04:24.7]} 12... a6
{[%clk 0:04:45.9]} 13. Bd2 {[%clk 0:04:18.2]} 13... Rb8 {[%clk 0:04:44.3]} 14.
a3 {[%clk 0:04:16.4]} 14... b5 {[%clk 0:04:43.1]} 15. cxb5 {[%clk 0:04:16.3]}
15... axb5 {[%clk 0:04:43]} 16. b4 {[%clk 0:04:15.4]} 16... Nd4 {[%clk
0:04:36.4]} 17. bxc5 {[%clk 0:04:03.9]} 17... dxc5 {[%clk 0:04:32.2]} 18. Ne2
{[%clk 0:03:52.7]} 18... Nxf3+ {[%clk 0:04:30.7]} 19. gxf3 {[%clk 0:03:52.6]}
19... Ne5 {[%clk 0:04:30]} 20. Nf4 {[%clk 0:03:47.1]} 20... Nxd3 {[%clk
0:04:24]} 21. Nxd3 {[%clk 0:03:45.9]} 21... Qxd3 {[%clk 0:04:23.9]} 22. Be3
{[%clk 0:03:45.7]} 22... Qxa3 {[%clk 0:04:20.6]} 23. Qd6 {[%clk 0:03:38.8]}
23... Rfc8 {[%clk 0:04:14.2]} 24. Rfc1 {[%clk 0:03:33.7]} 24... Bf8 {[%clk
0:04:03]} 25. Qe5 {[%clk 0:03:28.3]} 25... Qa7 {[%clk 0:03:08.4]} 26. Ra1 {[%clk
0:03:22.3]} 26... Qb6 {[%clk 0:02:59.4]} 27. Bg5 {[%clk 0:03:14]} 27... Bg7
{[%clk 0:02:56.9]} 28. Bf6 {[%clk 0:03:12.6]} 28... Bxf6 {[%clk 0:02:56.3]} 29.
Qxf6 {[%clk 0:03:12.5]} 29... c4 {[%clk 0:02:53.5]} 30. Rd1 {[%clk 0:03:11.4]}
30... Rd8 {[%clk 0:02:45.8]} 31. Rxd8+ {[%clk 0:03:09]} 31... Qxd8 {[%clk
0:02:45.7]} 32. Qe5 {[%clk 0:03:07.3]} 32... b4 {[%clk 0:02:38.2]} 33. Ra7
{[%clk 0:03:04.9]} 33... Rc8 {[%clk 0:01:56.5]} 34. Qf4 {[%clk 0:02:58.7]} 34...
Qf8 {[%clk 0:01:51.8]} 0-1

[Event "Live Chess"]
[Site "Chess.com"]
[Date "2023.05.21"]
[Round "-"]
[White "Crowded_House"]
[Black "SupremeTactician"]
[Result "1/2-1/2"]
[WhiteElo "1664"]
[BlackElo "2261"]
[TimeControl "300"]
[EndTime "2:29:35 PDT"]
[Termination "Game drawn by agreement"]

1. d4 {[%clk 0:04:59]} 1... Nf6 {[%clk 0:04:55.2]} 2. Bg5 {[%clk 0:04:58.6]}
2... e6 {[%clk 0:04:51.7]} 3. e3 {[%clk 0:04:57.8]} 3... Be7 {[%clk 0:04:51]} 4.
Bd3 {[%clk 0:04:57]} 4... O-O {[%clk 0:04:49.2]} 5. Nd2 {[%clk 0:04:56.1]} 5...
h6 {[%clk 0:04:48.6]} 6. Bh4 {[%clk 0:04:54.9]} 6... d5 {[%clk 0:04:48.1]} 7.
Ngf3 {[%clk 0:04:53.8]} 7... Nbd7 {[%clk 0:04:47.4]} 8. c3 {[%clk 0:04:52.9]}
8... c5 {[%clk 0:04:46.4]} 9. O-O {[%clk 0:04:50.8]} 9... c4 {[%clk 0:04:45.6]}
10. Bc2 {[%clk 0:04:50]} 10... b5 {[%clk 0:04:45.3]} 11. b3 {[%clk 0:04:48.8]}
11... a5 {[%clk 0:04:44.8]} 12. a3 {[%clk 0:04:42.8]} 12... Ba6 {[%clk
0:04:42.7]} 13. b4 {[%clk 0:04:40.1]} 13... axb4 {[%clk 0:04:41.3]} 14. axb4
{[%clk 0:04:39.3]} 14... Bb7 {[%clk 0:04:41.1]} 15. Rxa8 {[%clk 0:04:35.5]}
15... Qxa8 {[%clk 0:04:41]} 16. Qa1 {[%clk 0:04:34.3]} 16... Qxa1 {[%clk
0:04:39.3]} 17. Rxa1 {[%clk 0:04:33.4]} 17... Ra8 {[%clk 0:04:39.2]} 18. Rxa8+
{[%clk 0:04:31.6]} 18... Bxa8 {[%clk 0:04:39.1]} 19. Bg3 {[%clk 0:04:21.6]}
19... Kf8 {[%clk 0:04:35]} 20. Ne5 {[%clk 0:04:20.7]} 20... Nxe5 {[%clk
0:04:34.1]} 21. Bxe5 {[%clk 0:04:20.3]} 21... Nd7 {[%clk 0:04:33.6]} 22. Bg3
{[%clk 0:04:17.2]} 1/2-1/2